[Event "European Amateur Chess-ch 2022"]
[Site "Zagreb"]
[Date "2022.08.19"]
[Round "7.15"]
[White "Cvitkovic, Filip"]
[Black "Vanden Bussche, Steven"]
[Result "0-1"]
[ECO "A12"]
[WhiteElo "2164"]
[BlackElo "2026"]
[Annotator "TA"]
[PlyCount "152"]
[EventDate "2022.08.14"]
[EventCountry "CRO"]
[SourceTitle "playchess.com"]
[Source "ChessBase"]
[SourceQuality "1"]
[TimeControl "40/5400+30:1800+30"]

{[%evp 17,151,-3,-3,-14,-14,-6,-5,-21,-21,-47,-34,-66,-28,-54,-54,-54,-39,-25,-22,-25,3,7,27,12,0,0,-14,-49,-27,-21,-25,-82,-70,-137,-58,-66,-66,-69,-46,-48,-44,-96,-103,-159,-73,-78,-70,-238,-233,-201,-226,-314,-327,-354,-343,-398,-325,-377,-325,-318,-318,-318,-318,-389,-334,-350,-331,-395,-390,-463,-306,-1002,-977,-901,-685,-695,-661,-669,-633,-649,-489,-29978,-29979,-29980,-29981,-29981,-29982,-29982,-29982,-29983,-29980,-29980,-29981,-29981,-29982,-29982,-29983,-29983,-29984,-29985,-29986,-29986,-29987,-29987,-29988,-29989,-29990,-29990,-29990,-29990,-29989,-29989,-29989,-29989,-29989,-29989,-29988,-29988,-29989,-29989,-29990,-29990,-29991,-29994,-29995,-29995,-29995,-29995,-29996,-29997,-29998,-29998,-29998,-29998,-29999,-29999]} 1. c4 c6 2. Nf3 Nf6 3. g3 d5 4. Bg2 Bf5 5. O-O e6 6. b3 Nbd7 7. d3 h6 8. Bb2 Bc5 9. Nbd2 O-O 10. h3 {A12: English Opening: 1...c6 with b3 by White.} Bh7 11. a3 a5 12. Qc2 {The position is equal.} Qb6 {[#]} 13. Rae1 $146 ({Predecessor:} 13. Rad1 Rad8 14. Qc1 Be7 15. Qa1 Ne8 16. Bc3 Bf6 17. d4 Qa6 18. Nh2 Nd6 19. e4 dxe4 {0-1 (40) Sehner,N (2365)-Zude,A (2295) Bad Neuenahr 1987}) 13... Rfe8 14. e3 Rac8 15. Re2 e5 16. e4 dxe4 17. dxe4 Nh5 18. Kh2 g5 19. Ne1 f6 20. Bf3 Ng7 21. Bg4 Rcd8 22. Ng2 (22. Nd3 $5 {[%cal Rb3b4]}) 22... Ne6 23. Bxe6+ Rxe6 24. Kh1 (24. Ne3 $11 {keeps the balance.}) 24... Bd4 25. Bc1 ({White should play} 25. Kh2 $15) 25... Rde8 {Black is more active.} (25... Rd6 $17 26. Ne3 Bxe3 27. Rxe3 Nc5) 26. Ne3 $15 Bxe3 27. Rxe3 Nc5 28. Bb2 R6e7 29. Nf3 (29. Bc3 $1 $15) 29... Rd7 30. Ba1 {[#]} (30. Rfe1 $142) 30... Qd8 (30... Red8 $142 $1 {White must now prevent ...Rd3.} 31. Kh2 Rd3 32. Rxd3 Rxd3) 31. Rfe1 Rd3 {Threatens to win with ...Bxe4.} 32. Rxd3 $2 {This move loses the game for White.} (32. Kg2 $1 $15) 32... Qxd3 $19 ({Weaker is} 32... Nxd3 33. Re3 Nc5 34. b4 $15) 33. Qxd3 Nxd3 34. Re3 Nxf2+ {[%cal Bd3f2,Bf2e4,Be4c5][%mdl 32]} 35. Kg2 Nxe4 36. Rd3 Nc5 37. Rd6 Nxb3 38. Bc3 Kf7 39. Rd7+ Re7 40. Rd8 Ke6 {And now ...Be4 would win.} 41. Kf2 b5 42. cxb5 cxb5 43. Ke3 Rd7 44. Rh8 (44. Rxd7 Kxd7 45. h4) 44... Rd3+ 45. Ke2 Be4 46. Nd2 Nxd2 47. Bxd2 Rxg3 48. Rxh6 Bf5 {Strongly threatening ...Kf7.} 49. Bxa5 {[#]} (49. Kf2 $19 Rxa3 50. Bxg5) 49... Rxh3 {Black mates.} 50. Rxh3 Bxh3 {KB-KB} 51. Ke3 f5 52. Bd8 g4 53. Bc7 Bg2 54. Kf2 Bc6 55. Kg3 Bd7 56. Bb8 Kd5 57. Bc7 Ke4 58. Bb8 f4+ 59. Kg2 g3 60. Bc7 Kf5 61. Kf3 e4+ 62. Kg2 Kg4 63. Be5 Bc6 64. Kg1 Bd5 65. Bd6 Bc4 66. Bc7 f3 67. Bb6 f2+ 68. Bxf2 gxf2+ 69. Kxf2 {KB-KP} Kf4 70. a4 bxa4 71. Kg2 a3 72. Kh2 a2 73. Kg2 a1=Q 74. Kh2 Qg7 75. Kh1 Kf3 {[%csl Gf3][%cal Rg7g2]} 76. Kh2 Qg2# {Weighted Error Value: White=0.54/Black=0.26 (precise)} 0-1

[Event "European Amateur Chess-ch 2022"]
[Site "Zagreb"]
[Date "2022.08.19"]
[Round "7.16"]
[White "Jakupec, Denis"]
[Black "Janiszewski, Maciej"]
[Result "0-1"]
[ECO "A43"]
[WhiteElo "2004"]
[BlackElo "2075"]
[Annotator "NA RC"]
[PlyCount "54"]
[EventDate "2022.08.14"]
[EventCountry "CRO"]
[SourceTitle "playchess.com"]
[Source "ChessBase"]
[SourceQuality "1"]
[TimeControl "40/5400+30:1800+30"]

1. d4 c5 2. d5 f5 3. Nc3 Nf6 4. Bg5 Qb6 5. Bxf6 Qxf6 6. Nf3 g5 7. g3 Bg7 8. Bg2 O-O 9. O-O d6 10. Nd2 Nd7 11. e3 Ne5 12. Qe2 f4 13. exf4 gxf4 14. Nce4 Qh6 15. f3 fxg3 16. hxg3 e6 17. dxe6 Bxe6 18. c3 Rad8 19. f4 Ng4 20. Nf3 b5 21. Nh4 Nf6 22. Rfe1 Bc4 23. Qf3 Nxe4 24. Qxe4 d5 25. Qe7 d4 26. Qxc5 dxc3 27. b3 Bd4+ 0-1

[Event "European Amateur Chess-ch 2022"]
[Site "Zagreb"]
[Date "2022.08.19"]
[Round "7.17"]
[White "Vukic, Aleksandar"]
[Black "Maravic, Ivan"]
[Result "0-1"]
[ECO "C29"]
[WhiteElo "2073"]
[BlackElo "2009"]
[Annotator "NA RC"]
[PlyCount "82"]
[EventDate "2022.08.14"]
[EventCountry "CRO"]
[SourceTitle "playchess.com"]
[Source "ChessBase"]
[SourceQuality "1"]
[TimeControl "40/5400+30:1800+30"]

1. e4 e5 2. Nc3 Nf6 3. f4 d5 4. fxe5 Nxe4 5. Qf3 Nxc3 6. bxc3 Be7 7. d4 c5 8. Bb5+ Bd7 9. Bxd7+ Qxd7 10. Qg3 Nc6 11. Nf3 O-O-O 12. Be3 Na5 13. O-O Nc4 14. Bf4 Rhg8 15. Rae1 Qe6 16. dxc5 Bxc5+ 17. Kh1 h6 18. Nd4 Bxd4 19. cxd4 Kb8 20. Qb3 Ka8 21. Rb1 Rd7 22. Qd3 Rc8 23. Rf2 a6 24. Qh7 f5 25. exf6 g5 26. Qxh6 gxf4 27. Qxf4 Rf7 28. g4 Nd6 29. g5 Ne4 30. Rf3 Rxc2 31. Rg1 Rc8 32. Qe5 Qc6 33. Rf5 Rg8 34. Rgf1 Qc2 35. Qxd5 Ng3+ 36. Kg1 Ne2+ 37. Kh1 Ng3+ 38. Kg1 Nxf5 39. Qxf5 Qd2 40. g6 Qh6 41. g7 Rgxg7+ 0-1

[Event "European Amateur Chess-ch 2022"]
[Site "Zagreb"]
[Date "2022.08.19"]
[Round "7.18"]
[White "Baric, Marko"]
[Black "Okrosa, Marijan"]
[Result "0-1"]
[ECO "C12"]
[WhiteElo "1948"]
[BlackElo "2059"]
[Annotator "NA RC"]
[PlyCount "70"]
[EventDate "2022.08.14"]
[EventCountry "CRO"]
[SourceTitle "playchess.com"]
[Source "ChessBase"]
[SourceQuality "1"]
[TimeControl "40/5400+30:1800+30"]

1. e4 e6 2. d4 d5 3. Nc3 Nf6 4. Bg5 Bb4 5. e5 h6 6. Be3 Ne4 7. Qg4 Kf8 8. a3 Bxc3+ 9. bxc3 c5 10. Bd3 cxd4 11. Bxd4 Nc6 12. Bxe4 Nxd4 13. cxd4 Qa5+ 14. Ke2 dxe4 15. Qxe4 Bd7 16. Qd3 Rc8 17. c4 Rxc4 18. Qxc4 Bb5 19. Rc1 Bxc4+ 20. Rxc4 Qb5 21. Kd3 Qb3+ 22. Rc3 Qd1+ 23. Ke3 Kg8 24. Rd3 Qe1+ 25. Kf3 Kh7 26. Re3 Qd1+ 27. Kg3 Rc8 28. h3 b5 29. Kh2 Rc1 30. g4 a5 31. Kg2 b4 32. axb4 axb4 33. Kg3 b3 34. Ne2 Qxh1 35. Nxc1 b2 0-1

[Event "European Amateur Chess-ch 2022"]
[Site "Zagreb"]
[Date "2022.08.19"]
[Round "7.19"]
[White "Jakovic, Roko"]
[Black "Takac, Zvonko"]
[Result "1-0"]
[ECO "D35"]
[WhiteElo "1921"]
[BlackElo "2040"]
[Annotator "NA RC"]
[PlyCount "75"]
[EventDate "2022.08.14"]
[EventCountry "CRO"]
[SourceTitle "playchess.com"]
[Source "ChessBase"]
[SourceQuality "1"]
[TimeControl "40/5400+30:1800+30"]

1. d4 d5 2. c4 e6 3. Nc3 Nf6 4. cxd5 exd5 5. Bg5 Be7 6. e3 O-O 7. Bd3 h6 8. Bh4 b6 9. Nge2 Bb7 10. f3 c5 11. O-O Nbd7 12. Qd2 Rc8 13. Rac1 Bd6 14. Rfe1 Re8 15. Bg3 Qe7 16. Bxd6 Qxd6 17. Ng3 a6 18. Nf5 Qf8 19. Ne2 g6 20. Nfg3 Qe7 21. Nf4 cxd4 22. exd4 Rxc1 23. Rxc1 g5 24. Nf5 Qf8 25. Ne2 Rc8 26. h4 Nh7 27. Neg3 Ndf6 28. Re1 Kh8 29. Re7 Rb8 30. Qe3 Bc8 31. Nd6 Be6 32. Ngf5 Rd8 33. Qe5 Kg8 34. Rxe6 Nd7 35. Nxh6+ Qxh6 36. Rxh6 Nxe5 37. Bxh7+ Kg7 38. dxe5 1-0

[Event "European Amateur Chess-ch 2022"]
[Site "Zagreb"]
[Date "2022.08.19"]
[Round "7.20"]
[White "Faukovic, Matija"]
[Black "Basaric, Srdjan"]
[Result "1/2-1/2"]
[ECO "A38"]
[WhiteElo "2026"]
[BlackElo "2024"]
[Annotator "NA RC"]
[PlyCount "95"]
[EventDate "2022.08.14"]
[EventCountry "CRO"]
[SourceTitle "playchess.com"]
[Source "ChessBase"]
[SourceQuality "1"]
[TimeControl "40/5400+30:1800+30"]

1. b3 g6 2. Bb2 Nf6 3. Nf3 Bg7 4. g3 c5 5. c4 Nc6 6. Bg2 O-O 7. O-O d6 8. Nc3 e5 9. d3 a6 10. a3 Rb8 11. Nd2 Be6 12. Nd5 Ne7 13. e4 Nfxd5 14. cxd5 Bd7 15. b4 cxb4 16. axb4 Bb5 17. Qb3 Nc8 18. Nc4 Nb6 19. Bc1 Rc8 20. Na3 Ba4 21. Qb2 Bd7 22. Be3 Na4 23. Qd2 b5 24. Rac1 Qe7 25. Nb1 f5 26. f3 f4 27. Bf2 h5 28. Nc3 Bh6 29. Ne2 fxg3 30. Qxh6 gxf2+ 31. Kxf2 Qf6 32. Kg1 Rxc1 33. Rxc1 Rc8 34. Rxc8+ Bxc8 35. f4 Bg4 36. fxe5 dxe5 37. Bf1 Kf7 38. Qh7+ Qg7 39. Qxg7+ Kxg7 40. Nc1 Bd1 41. Kf2 Kf6 42. Ke3 Bg4 43. d4 Nb2 44. Nb3 Nd1+ 45. Kd3 Nf2+ 46. Ke3 Nd1+ 47. Kd3 Nf2+ 48. Ke3 1/2-1/2

[Event "European Amateur Chess-ch 2022"]
[Site "Zagreb"]
[Date "2022.08.19"]
[Round "7.21"]
[White "Korov, Zvonko"]
[Black "Dzaja, Martin Zorislav"]
[Result "0-1"]
[ECO "A06"]
[WhiteElo "2015"]
[BlackElo "1974"]
[Annotator "NA RC"]
[PlyCount "62"]
[EventDate "2022.08.14"]
[EventCountry "CRO"]
[SourceTitle "playchess.com"]
[Source "ChessBase"]
[SourceQuality "1"]
[TimeControl "40/5400+30:1800+30"]

1. Nf3 d5 2. b3 c5 3. e3 Nf6 4. Bb2 a6 5. c4 dxc4 6. bxc4 Nc6 7. Be2 Bf5 8. O-O Nb4 9. Na3 e6 10. d4 Be7 11. Qb3 O-O 12. Rac1 Rc8 13. Rfd1 Qc7 14. Nb1 Rfd8 15. Nc3 Ne4 16. h3 cxd4 17. Nxd4 Bg6 18. Na4 Bh4 19. f4 Nc6 20. Nxc6 Qxc6 21. Bd4 Nf2 22. Rf1 Ne4 23. Rcd1 Ng3 24. Bf3 Qxc4 25. Bb6 Rxd1 26. Rxd1 Be4 27. Qxc4 Rxc4 28. Bd8 Bxf3 29. gxf3 f6 30. Nb2 Rc2 31. Rb1 Ne2+ 0-1

[Event "European Amateur Chess-ch 2022"]
[Site "Zagreb"]
[Date "2022.08.19"]
[Round "7.22"]
[White "Starcevic, Danijel"]
[Black "Raljic, Mirko"]
[Result "0-1"]
[ECO "B40"]
[WhiteElo "1935"]
[BlackElo "2023"]
[Annotator "NA RC"]
[PlyCount "160"]
[EventDate "2022.08.14"]
[EventCountry "CRO"]
[SourceTitle "playchess.com"]
[Source "ChessBase"]
[SourceQuality "1"]
[TimeControl "40/5400+30:1800+30"]

1. e4 c5 2. Nf3 e6 3. d4 cxd4 4. Nxd4 Nf6 5. Nc3 Bb4 6. Bd3 Nc6 7. Nxc6 dxc6 8. O-O e5 9. a3 Bc5 10. Na4 Bd6 11. Bg5 h6 12. Bd2 b5 13. Nc3 Bc5 14. b4 Bd4 15. a4 Bg4 16. Qb1 a6 17. Ra3 O-O 18. Qc1 Qd6 19. Kh1 Bh5 20. f3 Bg6 21. Ne2 Bb6 22. c4 bxc4 23. Bxc4 Rfc8 24. Ng3 a5 25. Rd3 Qe7 26. Qb2 Bd4 27. Qa3 axb4 28. Bxb4 Qa7 29. a5 Nd7 30. Ne2 Bc5 31. Rxd7 Bxb4 32. Rxa7 Bxa3 33. Rxa8 Rxa8 34. a6 Kf8 35. Ra1 Bc5 36. Ra5 Bd6 37. Nc3 Bb4 38. Rxe5 Bxc3 39. Rc5 Bd4 40. Rxc6 f6 41. Rc7 Ra7 42. Rc8+ Ke7 43. Rg8 f5 44. exf5 Bxf5 45. Bb5 Bd7 46. Bd3 Kd6 47. Rb8 Bc6 48. Rb4 Bc5 49. Rg4 Re7 50. h3 Kc7 51. Kh2 Bd6+ 52. Kg1 Kb6 53. Rg6 Kc5 54. h4 Be5 55. Kf2 Bf6 56. Rg4 Bb5 57. Re4 Ra7 58. Bxb5 Kxb5 59. h5 Rxa6 60. Kg3 Kc5 61. Kg4 Rd6 62. Kh3 Rd5 63. g4 Rd3 64. Kg2 Kd5 65. Re2 Be5 66. Kf2 Bd4+ 67. Kg3 Bc5 68. Kg2 Bb4 69. Kg3 Rd2 70. Re8 Bd6+ 71. f4 Rd3+ 72. Kf2 Bxf4 73. Rd8+ Ke4 74. Re8+ Be5 75. Ra8 Rd2+ 76. Ke1 Rg2 77. Ra4+ Bd4 78. Ra8 Rxg4 79. Re8+ Kd3 80. Kf1 Rg1# 0-1

[Event "European Amateur Chess-ch 2022"]
[Site "Zagreb"]
[Date "2022.08.20"]
[Round "8.1"]
[White "Begic, Domagoj"]
[Black "Vujec, Ivan"]
[Result "0-1"]
[ECO "B11"]
[WhiteElo "2026"]
[BlackElo "2192"]
[Annotator "TA"]
[PlyCount "134"]
[EventDate "2022.08.14"]
[EventCountry "CRO"]
[SourceTitle "playchess.com"]
[Source "ChessBase"]
[SourceQuality "1"]
[TimeControl "40/5400+30:1800+30"]

{[%evp 12,134,19,7,31,33,45,4,70,43,43,46,55,48,54,54,52,56,62,-7,-13,-20,-15,-29,-16,-30,-40,-72,-72,-219,-244,-231,-214,-222,-211,-384,-394,-379,-250,-249,-248,-359,-367,-346,-223,-220,-226,-220,-254,-243,-60,-70,-65,-72,-70,-84,-59,-109,-79,-60,-68,-56,-58,-74,-42,-79,-77,-108,-85,-107,-105,-118,-82,-83,-37,-134,-139,-170,-145,-595,-718,-722,-718,-699,-615,-691,-601,-1372,-991,-916,-903,-1184,-1164,-1110,-1067,-5089,-2285,-10247,-6514,-6490,-5405,-29969,-6518,-5501,-5224,-29976,-29977,-29977,-29978,-29977,-29963,-29981,-29960,-29984,-29984,-29984,-29985,-29985,-29986,-29986,-29986,-29985,-29986,-29988,-29966]} 1. e4 c6 2. Nc3 d5 3. Nf3 Bg4 4. h3 Bxf3 5. Qxf3 e6 6. d3 Nd7 7. Bd2 a6 {7...g6 is setting a new trend. B11: Caro-Kann: Two Knights Variation.} 8. O-O-O Ne7 {[#]} 9. Qg3 $146 ({Predecessor:} 9. g4 Ng6 10. Qg3 Bb4 11. a3 Be7 12. f4 d4 13. Ne2 e5 14. f5 Ngf8 15. h4 {1-0 (46) Lyell,M (2245)-Jacobsen,M (2328) Budapest 2020}) 9... Ng6 (9... d4 $11) 10. f4 Qc7 11. Qf2 d4 12. Ne2 c5 13. c3 e5 14. g3 Bd6 {[%cal Bf8d6,Bd6e5,Be5d4][%mdl 32]} 15. fxe5 ({White should try} 15. Kb1 $14) 15... dxc3 $11 16. Nxc3 Bxe5 17. Nd5 Qd6 18. Rg1 Ne7 19. Ne3 Bd4 {[%cal Oc5c4]} 20. Nc4 {[#]} (20. Kb1 $17) 20... Qe6 $1 $19 21. Be3 b5 22. Bxd4 cxd4 23. Na3 (23. Qxd4 bxc4 24. dxc4) 23... Qxa2 24. Qxd4 f6 {White must now prevent ...Rc8+.} 25. Kd2 Ne5 {...Nf3+ is the strong threat.} 26. Ke3 {Prevents Nf3.} (26. Be2 {was worth a try.} Rd8 27. Qc3) 26... O-O 27. Be2 Qe6 28. Kf2 Qxh3 29. Qd6 Rae8 {[%cal Of6f5]} 30. Rh1 {[#]} Qd7 ({Black should play} 30... Qc8 $1 $19 {aiming for ...Nf7.} 31. Rh5 Nf7) 31. Qxd7 $15 Nxd7 {Pair of Knights!} 32. d4 Rc8 33. Rc1 g6 34. Bf3 (34. Rxc8 $15 Rxc8 35. Ra1) 34... Rxc1 35. Rxc1 Rc8 $1 {Inhibits Rc7.} 36. Rxc8+ Nxc8 {[%mdl 4096] Endgame KBN-KNN} 37. Ke3 Nd6 38. b3 Kf7 39. Be2 Ke6 40. Nc2 Nb6 41. Bf3 Nb7 42. Kd3 a5 ({Better is} 42... h5 $17) 43. Kc3 {Black converts the advantage convincingly.} (43. e5 $15 Nd8 44. exf6) 43... Nd6 $17 44. Ne3 f5 45. Kd3 {[%mdl 8192]} (45. exf5+ $17 {was the crucial defense.} Nxf5 46. Nxf5 Kxf5 47. Kd2) 45... fxe4+ $19 46. Bxe4 Nxe4 47. Kxe4 {KN-KN} h5 48. Ng2 Nd5 {Strongly threatening ...a4.} 49. Nh4 g5 50. Nf3 Nf6+ 51. Kd3 Kf5 52. Ne5 Nd5 53. Nc6 a4 54. bxa4 bxa4 55. Ne5 a3 {( -> ...a2)} 56. Kc2 Ne3+ (56... h4 $142 57. gxh4 gxh4 58. Nc4 h3 59. Nd2 Kf4 60. Nf1 Ne3+ 61. Kb3 Nxf1 62. Kxa3 h2 63. Kb4 h1=Q 64. Kc5 Ne3 65. Kb6 Nd5+ 66. Kc5 Ke4 67. Kd6 Qh2+ 68. Ke6 Qh7 69. Kd6 Qc7+ 70. Ke6 Qe7#) 57. Kb3 Nf1 58. g4+ hxg4 {[%cal Bh5g4,Bg4g3,Bg3g2][%mdl 32] Black mates.} 59. Kxa3 g3 60. Nf3 g2 61. d5 {[#]} Nd2 $1 {[%mdl 512]} 62. d6 (62. Ng1 Ke4) 62... Nc4+ 63. Kb4 Nxd6 64. Kc5 Kf4 65. Ng1 Nf5 66. Kd5 g4 67. Kc4 Ke5 {Weighted Error Value: White=0.85/Black=0.38} 0-1

[Event "European Amateur Chess-ch 2022"]
[Site "Zagreb"]
[Date "2022.08.20"]
[Round "8.2"]
[White "Fajdetic, Hrvoje"]
[Black "Novosel, Lovro"]
[Result "0-1"]
[ECO "A02"]
[WhiteElo "2151"]
[BlackElo "2212"]
[Annotator "TA"]
[PlyCount "98"]
[EventDate "2022.08.14"]
[EventCountry "CRO"]
[SourceTitle "playchess.com"]
[Source "ChessBase"]
[SourceQuality "1"]
[TimeControl "40/5400+30:1800+30"]

{[%evp 9,98,0,4,-14,0,-2,-5,-8,0,0,0,-1,0,0,0,0,0,-8,-3,-10,12,-57,-68,-53,-61,-60,-54,-64,-37,-37,-37,-43,-45,-39,-40,-45,-41,-50,-35,-72,-62,-121,-112,-118,-97,-106,-77,-91,-79,-215,-212,-268,-266,-389,-335,-483,-548,-550,-525,-543,-541,-531,-526,-581,-554,-735,-520,-506,0,-1267,-1001,-29983,-29984,-29987,-29988,-29988,-29989,-29989,-1214,-1081,-953,-1250,-1168,-994,-754,-1897,-1855,-1282,-943,-1257,-1155]} 1. f4 Nf6 2. b3 e6 3. Nf3 Be7 4. Bb2 b6 5. e3 Bb7 6. d4 {A02: Bird's Opening.} O-O 7. Bd3 {[#]} c5 $146 ({Predecessor:} 7... Bb4+ 8. c3 Be7 9. O-O Bxf3 10. Qxf3 d5 11. Nd2 Nbd7 12. e4 dxe4 13. Nxe4 Nxe4 14. Bxe4 {1-0 (54) Capaliku,A (2037)-Petrovcic,C (1618) Nova Gorica 2015}) 8. O-O {The position is equal.} cxd4 9. exd4 Qc7 10. Ne5 d6 11. Ng4 Nbd7 {[%cal Oe6e5]} 12. Nd2 Rac8 13. Qe2 Nxg4 14. Qxg4 {[%cal Od4d5]} Bf6 15. Ne4 (15. Nc4 $11) 15... Bxe4 $15 16. Bxe4 d5 17. Bd3 Nc5 $1 18. Be2 Ne4 19. Bd3 g6 20. Bxe4 dxe4 21. c3 Bg7 22. Qe2 Qb7 23. Rad1 b5 24. g4 {[#]} f5 $1 25. g5 {Black converts the advantage convincingly.} ({White should try} 25. h4 $15) 25... Rfd8 $17 26. Rd2 Rd7 27. h4 Rcd8 28. Rfd1 h5 29. gxh6 (29. Ba3 $17) 29... Bxh6 $19 30. Qe3 Qc7 31. Rf1 (31. Rg2 $142 Bxf4 32. Qe2) 31... e5 $1 {[%cal Re5f4]} 32. Rdf2 (32. Rg2 $142 exf4 33. Qh3) 32... exf4 33. Rxf4 Rg7 34. Kh1 Bxf4 35. Rxf4 Qf7 36. c4 bxc4 37. d5 Rh7 38. bxc4 g5 $2 (38... Rc8 $19 39. Kg1 Rxc4) 39. Rf2 $2 {[%mdl 8192]} (39. Rg4 $11 fxg4 40. Qxg5+ Rg7 41. Qxd8+ Kh7 42. Bxg7 Qf1+ 43. Kh2 Qf2+ 44. Kh1 Qf1+ 45. Kh2 Qf2+ 46. Kh1 Qf1+) 39... Rxh4+ 40. Kg1 Qh5 41. Rg2 Rh1+ 42. Kf2 Qh4+ 43. Qg3 Qxg3+ ({Weaker is} 43... Rb8 44. Qxh4 Rxh4 45. Rxg5+ Kh7 46. Kg3 $19) (43... e3+ $142 44. Kxe3 f4+ 45. Kd3 fxg3 46. Rd2 g2 47. Kc3 g1=Q 48. Rd3 Qhe1+ 49. Rd2 Rh3+ 50. Kb4 Qb6+ 51. Ka4 Qe8#) 44. Kxg3 {[%mdl 4096] Endgame KRR-KRB. Black is clearly winning.} Kf7 {[#] aiming for ...f4+.} 45. Kf2 f4 {[%cal Bf5f4,Bf4f3][%mdl 32]} 46. Be5 Rh5 {White must now prevent ...Rc8.} 47. Kg1 Rc8 48. Rc2 f3 {Hoping for ...e3.} 49. Rc3 g4 {Weighted Error Value: White=0.65/Black=0.47} 0-1

[Event "European Amateur Chess-ch 2022"]
[Site "Zagreb"]
[Date "2022.08.20"]
[Round "8.3"]
[White "Peric, Bernard"]
[Black "Krikunov, Dmitry"]
[Result "1/2-1/2"]
[ECO "B13"]
[WhiteElo "2112"]
[BlackElo "2202"]
[Annotator "TA"]
[PlyCount "45"]
[EventDate "2022.08.14"]
[EventCountry "CRO"]
[SourceTitle "playchess.com"]
[Source "ChessBase"]
[SourceQuality "1"]
[TimeControl "40/5400+30:1800+30"]

{[%evp 24,45,26,26,27,27,28,10,53,0,14,0,25,-14,-9,-8,9,-6,0,0,87,96,73,68]} 1. e4 c6 2. d4 d5 3. exd5 cxd5 4. Bd3 Nc6 5. c3 Nf6 6. Bf4 Bg4 7. Qb3 Qd7 8. Nd2 {[%cal Bb1d2,Bd2f3,Bf3e5][%mdl 32]} e6 9. Ngf3 Bxf3 10. Nxf3 Bd6 11. Bxd6 Qxd6 12. O-O O-O 13. Rfe1 Qc7 $1 {[%mdl 4] outshines the older 13...Rab8. B13: Caro-Kann: Exchange Variation and Panov-Botvinnik Attack.} 14. Qc2 Rab8 15. Ne5 {[#]} b5 $146 {The position is equal.} (15... Rfc8 $5 {[%cal Rc6d4]}) ({Predecessor:} 15... g6 16. Qe2 Nxe5 17. dxe5 Nd7 18. h4 Rfd8 19. h5 Nc5 20. Bb1 d4 21. cxd4 Rxd4 {0-1 (34) Zhurova,A (1947)-Nechaeva,M (2409) Sochi 2018}) 16. a3 ({White should try} 16. a4 $1 $14) 16... a5 (16... Rfc8 $5 {[%cal Rc6d4]}) 17. Re3 g6 18. Rae1 Nxe5 19. dxe5 Nd7 20. h4 {[%cal Bh2h4,Bh4h5][%mdl 32]} Rfc8 {[%cal Od5d4]} 21. h5 {[%cal Rh5g6]} Kg7 (21... d4 $11 22. Rh3 Nxe5) 22. Qd2 $16 {White is more active.} Nc5 23. Bc2 {Weighted Error Value: White=0.14 (very precise) /Black=0.25 (precise)} 1/2-1/2

[Event "European Amateur Chess-ch 2022"]
[Site "Zagreb"]
[Date "2022.08.20"]
[Round "8.4"]
[White "Karlusic, Luka"]
[Black "Starcevic, Ante Leon"]
[Result "1-0"]
[ECO "D87"]
[WhiteElo "2089"]
[BlackElo "2152"]
[Annotator "NA RC"]
[PlyCount "59"]
[EventDate "2022.08.14"]
[EventCountry "CRO"]
[SourceTitle "playchess.com"]
[Source "ChessBase"]
[SourceQuality "1"]
[TimeControl "40/5400+30:1800+30"]

1. d4 Nf6 2. c4 g6 3. Nc3 d5 4. cxd5 Nxd5 5. e4 Nxc3 6. bxc3 Bg7 7. Bc4 c5 8. Ne2 Nc6 9. Be3 O-O 10. Rc1 cxd4 11. cxd4 Qa5+ 12. Rc3 Bg4 13. f3 e5 14. d5 Nd4 15. Bd2 Bd7 16. Nxd4 exd4 17. Rc1 Qc5 18. Bd3 Qe7 19. O-O Rfc8 20. Qb3 b6 21. f4 Qe8 22. e5 g5 23. Bb1 Bb5 24. Qh3 Bxf1 25. Qxh7+ Kf8 26. Bb4+ Rc5 27. Rxc5 Qe7 28. Rc8+ Rxc8 29. Bxe7+ Kxe7 30. Kxf1 1-0